[Event "GrandPrix_29.05"]
[Site "Chess.com"]
[Date "2020.05.29"]
[Round "3"]
[White "LorisinoC"]
[Black "guylevin1"]
[Result "1/2-1/2"]
[WhiteElo "2177"]
[BlackElo "2115"]
[TimeControl "600+2"]
[EndTime "10:26:47 PDT"]
[Termination "Game drawn by repetition"]

1. e4 {[%clk 0:10:00.4]} 1... c5 {[%clk 0:10:00.4]} 2. Nf3 {[%clk 0:10:00.2]}
2... d6 {[%clk 0:10:00.8]} 3. Bb5+ {[%clk 0:10:00.3]} 3... Bd7 {[%clk
0:10:01.6]} 4. Bxd7+ {[%clk 0:09:57.9]} 4... Nxd7 {[%clk 0:10:03.4]} 5. c3
{[%clk 0:09:57.7]} 5... Ngf6 {[%clk 0:10:00.6]} 6. Qe2 {[%clk 0:09:57.1]} 6...
e6 {[%clk 0:09:59.4]} 7. O-O {[%clk 0:09:56.2]} 7... Be7 {[%clk 0:09:57.9]} 8.
Rd1 {[%clk 0:09:52.5]} 8... O-O {[%clk 0:09:56.5]} 9. d4 {[%clk 0:09:48.4]} 9...
Rc8 {[%clk 0:09:04.8]} 10. e5 {[%clk 0:09:39.1]} 10... Ne8 {[%clk 0:08:55.3]}
11. Bf4 {[%clk 0:09:25.6]} 11... cxd4 {[%clk 0:08:36.6]} 12. cxd4 {[%clk
0:09:27.5]} 12... dxe5 {[%clk 0:08:37.9]} 13. dxe5 {[%clk 0:09:20.9]} 13... Nc7
{[%clk 0:08:39.4]} 14. Nc3 {[%clk 0:09:06.5]} 14... Qe8 {[%clk 0:08:39.3]} 15.
Rd2 {[%clk 0:08:51.9]} 15... Nb6 {[%clk 0:08:38.3]} 16. Rad1 {[%clk 0:08:36.5]}
16... Ncd5 {[%clk 0:08:38.3]} 17. Nxd5 {[%clk 0:08:33.4]} 17... Nxd5 {[%clk
0:08:38.6]} 18. Qe4 {[%clk 0:08:27.8]} 18... b5 {[%clk 0:07:41.8]} 19. a3 {[%clk
0:08:07.4]} 19... Rc4 {[%clk 0:07:30.9]} 20. Rd4 {[%clk 0:08:05.7]} 20... Rxd4
{[%clk 0:07:20.8]} 21. Qxd4 {[%clk 0:08:01.6]} 21... Qc8 {[%clk 0:07:06.9]} 22.
Rc1 {[%clk 0:07:51.8]} 22... Qb7 {[%clk 0:07:05.4]} 23. Be3 {[%clk 0:07:51]}
23... a6 {[%clk 0:06:19.6]} 24. h3 {[%clk 0:07:36.9]} 24... Rc8 {[%clk
0:06:15.2]} 25. Rxc8+ {[%clk 0:07:26.8]} 25... Qxc8 {[%clk 0:06:17.1]} 26. b4
{[%clk 0:07:26.5]} 26... h6 {[%clk 0:06:06.4]} 27. Qd3 {[%clk 0:06:47.6]} 27...
Qc7 {[%clk 0:05:44.3]} 28. Bd2 {[%clk 0:06:38.8]} 28... Nb6 {[%clk 0:04:49.6]}
29. Be3 {[%clk 0:06:17.7]} 29... Nc4 {[%clk 0:04:44.1]} 30. Qc3 {[%clk 0:06:18]}
30... Qc6 {[%clk 0:03:56.2]} 31. Nd2 {[%clk 0:06:09.3]} 31... Na5 {[%clk
0:02:35.1]} 32. Qxc6 {[%clk 0:05:57]} 32... Nxc6 {[%clk 0:02:37]} 33. Nf3 {[%clk
0:05:57.8]} 33... Kf8 {[%clk 0:02:05.5]} 34. Bc1 {[%clk 0:05:48.1]} 34... Ke8
{[%clk 0:02:01.7]} 35. Kf1 {[%clk 0:05:39.1]} 35... h5 {[%clk 0:02:02]} 36. Ke2
{[%clk 0:05:26.4]} 36... Kd7 {[%clk 0:02:00.6]} 37. g4 {[%clk 0:05:24.2]} 37...
hxg4 {[%clk 0:02:00.5]} 38. hxg4 {[%clk 0:05:23.8]} 38... Bd8 {[%clk 0:01:57.4]}
39. Kd3 {[%clk 0:05:19.6]} 39... Bb6 {[%clk 0:01:16.8]} 40. Be3 {[%clk
0:05:07.3]} 40... Bc7 {[%clk 0:01:03]} 41. Ke4 {[%clk 0:04:58.5]} 41... Ne7
{[%clk 0:00:57]} 42. Nd2 {[%clk 0:04:49.7]} 42... a5 {[%clk 0:00:47.5]} 43. Nb3
{[%clk 0:04:36.1]} 43... axb4 {[%clk 0:00:41.2]} 44. axb4 {[%clk 0:04:38]} 44...
Nc6 {[%clk 0:00:42.3]} 45. Nc5+ {[%clk 0:04:27.6]} 45... Kc8 {[%clk 0:00:36.6]}
46. Nd3 {[%clk 0:04:25.3]} 46... Ne7 {[%clk 0:00:32.7]} 47. Bc5 {[%clk
0:04:25.6]} 47... Nd5 {[%clk 0:00:33.4]} 48. f4 {[%clk 0:04:12.2]} 48... Kd7
{[%clk 0:00:32.5]} 49. f5 {[%clk 0:04:09.5]} 49... g6 {[%clk 0:00:30.1]} 50.
fxg6 {[%clk 0:04:10]} 50... fxg6 {[%clk 0:00:30.9]} 51. Bd4 {[%clk 0:03:52.1]}
51... Bd8 {[%clk 0:00:26.4]} 52. Nc5+ {[%clk 0:03:49.2]} 52... Ke7 {[%clk
0:00:27]} 53. Bf2 {[%clk 0:03:47.7]} 53... Kf7 {[%clk 0:00:20.9]} 54. Nb7 {[%clk
0:03:44.7]} 54... Be7 {[%clk 0:00:20.4]} 55. Nd6+ {[%clk 0:03:32.6]} 55... Bxd6
{[%clk 0:00:03.9]} 56. exd6 {[%clk 0:03:34.5]} 56... Nf6+ {[%clk 0:00:04.2]} 57.
Kd4 {[%clk 0:03:31.9]} 57... Nd7 {[%clk 0:00:05.7]} 58. Bh4 {[%clk 0:03:24.5]}
58... Kg7 {[%clk 0:00:06.2]} 59. Bg5 {[%clk 0:03:22.6]} 59... Kf7 {[%clk
0:00:07]} 60. Bh4 {[%clk 0:03:22.9]} 60... Kg7 {[%clk 0:00:05.8]} 61. Bd8 {[%clk
0:03:07.2]} 61... Kf7 {[%clk 0:00:06.8]} 62. Bg5 {[%clk 0:03:06.7]} 62... Kg7
{[%clk 0:00:07.5]} 63. Bd8 {[%clk 0:02:41.6]} 63... Kf7 {[%clk 0:00:08]} 64. Bg5
{[%clk 0:02:41.7]} 64... Kg7 {[%clk 0:00:08.9]} 65. Bd8 {[%clk 0:02:42]} 1/2-1/2

[Event "GrandPrix_29.05"]
[Site "Chess.com"]
[Date "2020.05.29"]
[Round "3"]
[White "Happy1712Drummer"]
[Black "gygygygygyggygygygy"]
[Result "1-0"]
[WhiteElo "2205"]
[BlackElo "2022"]
[TimeControl "600+2"]
[EndTime "10:26:48 PDT"]
[Termination "Happy1712Drummer won by resignation"]

1. d4 {[%clk 0:10:00.7]} 1... Nf6 {[%clk 0:09:59.9]} 2. c4 {[%clk 0:10:00]} 2...
e6 {[%clk 0:10:00.2]} 3. g3 {[%clk 0:09:59.9]} 3... d6 {[%clk 0:09:51.3]} 4. Bg2
{[%clk 0:10:00.5]} 4... Nbd7 {[%clk 0:09:52.7]} 5. Nc3 {[%clk 0:09:59.9]} 5...
Be7 {[%clk 0:09:53.3]} 6. e4 {[%clk 0:09:58.9]} 6... O-O {[%clk 0:09:53]} 7.
Nge2 {[%clk 0:09:59.3]} 7... c5 {[%clk 0:09:51.7]} 8. d5 {[%clk 0:09:56.5]} 8...
Ne5 {[%clk 0:09:47.4]} 9. b3 {[%clk 0:09:55.3]} 9... exd5 {[%clk 0:09:46.4]} 10.
exd5 {[%clk 0:09:33.8]} 10... Bf5 {[%clk 0:09:43.9]} 11. O-O {[%clk 0:09:33]}
11... a6 {[%clk 0:09:19]} 12. h3 {[%clk 0:09:29.4]} 12... Bg6 {[%clk 0:08:35.2]}
13. f4 {[%clk 0:09:19.2]} 13... Nd3 {[%clk 0:08:19]} 14. f5 {[%clk 0:09:17.7]}
14... Nxc1 {[%clk 0:08:15.2]} 15. Rxc1 {[%clk 0:09:18.4]} 15... Bh5 {[%clk
0:08:16.3]} 16. g4 {[%clk 0:09:18.5]} 16... Nxg4 {[%clk 0:08:17]} 17. hxg4
{[%clk 0:09:20.2]} 17... Bxg4 {[%clk 0:08:17.5]} 18. Qd3 {[%clk 0:09:15.4]}
18... Bg5 {[%clk 0:08:15.8]} 19. Rce1 {[%clk 0:09:11.9]} 19... Bh4 {[%clk
0:08:07.3]} 20. Ng3 {[%clk 0:08:28.9]} 20... Re8 {[%clk 0:06:54.5]} 21. Nce4
{[%clk 0:08:18.7]} 21... Re5 {[%clk 0:06:41.9]} 22. Qe3 {[%clk 0:06:37]} 22...
Qe7 {[%clk 0:06:08]} 23. f6 {[%clk 0:06:20.5]} 23... gxf6 {[%clk 0:05:39.5]} 24.
Qf4 {[%clk 0:05:47.9]} 24... f5 {[%clk 0:05:25.8]} 25. Bf3 {[%clk 0:04:51.8]}
25... Bxg3 {[%clk 0:03:34.2]} 26. Qxg3 {[%clk 0:04:49.5]} 26... fxe4 {[%clk
0:03:33.9]} 27. Bxg4 {[%clk 0:04:41]} 27... Rg5 {[%clk 0:03:31.3]} 28. Qh4
{[%clk 0:03:51.7]} 28... h6 {[%clk 0:01:50.3]} 29. Kh1 {[%clk 0:03:47.6]} 29...
Kg7 {[%clk 0:01:28.8]} 30. Bh5 {[%clk 0:03:25.8]} 30... Kh8 {[%clk 0:00:58.3]}
31. Rxe4 {[%clk 0:03:21.6]} 31... Rxh5 {[%clk 0:00:58.1]} 32. Qxh5 {[%clk
0:03:10.7]} 32... Qxe4+ {[%clk 0:00:57.4]} 33. Kh2 {[%clk 0:03:05.5]} 33... Qg6
{[%clk 0:00:50.3]} 34. Qxg6 {[%clk 0:03:03.6]} 34... fxg6 {[%clk 0:00:50.9]} 35.
Rf6 {[%clk 0:03:05.4]} 35... Rd8 {[%clk 0:00:46.2]} 36. Rxg6 {[%clk 0:03:06.1]}
36... Kh7 {[%clk 0:00:47.4]} 37. Re6 {[%clk 0:03:07]} 37... Rd7 {[%clk
0:00:47.8]} 38. Kh3 {[%clk 0:03:08.9]} 38... b5 {[%clk 0:00:45.1]} 39. Kh4
{[%clk 0:02:54.8]} 39... bxc4 {[%clk 0:00:45.6]} 40. bxc4 {[%clk 0:02:56.7]}
40... Rb7 {[%clk 0:00:25.9]} 41. Rxd6 {[%clk 0:02:55.8]} 41... Rb4 {[%clk
0:00:27.4]} 42. Kh5 {[%clk 0:02:49.2]} 42... Rxc4 {[%clk 0:00:21]} 43. Rxa6
{[%clk 0:02:36.8]} 43... Rd4 {[%clk 0:00:21.5]} 44. Ra7+ {[%clk 0:02:36.3]}
44... Kg8 {[%clk 0:00:21.5]} 45. Rd7 {[%clk 0:02:25.5]} 45... c4 {[%clk
0:00:20.9]} 46. Kg6 {[%clk 0:02:26.3]} 46... Rg4+ {[%clk 0:00:21.8]} 47. Kf6
{[%clk 0:02:23.2]} 47... h5 {[%clk 0:00:19]} 48. d6 {[%clk 0:02:13.3]} 48... h4
{[%clk 0:00:16.6]} 49. Rc7 {[%clk 0:01:58.4]} 49... Rd4 {[%clk 0:00:15.8]} 50.
d7 {[%clk 0:01:56.8]} 50... Rd6+ {[%clk 0:00:09.7]} 51. Ke5 {[%clk 0:01:53.2]}
51... Rd1 {[%clk 0:00:02.7]} 52. Rc8+ {[%clk 0:01:52.7]} 52... Kf7 {[%clk
0:00:04.6]} 53. d8=Q {[%clk 0:01:53.4]} 53... Rxd8 {[%clk 0:00:05.8]} 54. Rxd8
{[%clk 0:01:54.3]} 1-0

[Event "GrandPrix_29.05"]
[Site "Chess.com"]
[Date "2020.05.29"]
[Round "3"]
[White "RitvarsReimanis"]
[Black "TheFireChess"]
[Result "1-0"]
[WhiteElo "2107"]
[BlackElo "2203"]
[TimeControl "600+2"]
[EndTime "10:26:53 PDT"]
[Termination "RitvarsReimanis won on time"]

1. d4 {[%clk 0:09:58.7]} 1... d6 {[%clk 0:09:51.6]} 2. Nf3 {[%clk 0:09:58.9]}
2... f5 {[%clk 0:09:52]} 3. Nc3 {[%clk 0:09:56.2]} 3... Nf6 {[%clk 0:09:52.8]}
4. Bg5 {[%clk 0:09:57.8]} 4... Nbd7 {[%clk 0:09:53.9]} 5. e3 {[%clk 0:09:54.7]}
5... g6 {[%clk 0:09:54.7]} 6. Bc4 {[%clk 0:09:54.5]} 6... Bg7 {[%clk 0:09:54.8]}
7. h4 {[%clk 0:09:53.4]} 7... h6 {[%clk 0:09:55.1]} 8. Bf4 {[%clk 0:09:50]} 8...
c6 {[%clk 0:09:44.1]} 9. a4 {[%clk 0:09:43.9]} 9... Ne4 {[%clk 0:09:35.4]} 10.
Nxe4 {[%clk 0:09:23.8]} 10... fxe4 {[%clk 0:09:37.3]} 11. Nd2 {[%clk 0:09:23.4]}
11... d5 {[%clk 0:08:34]} 12. Be2 {[%clk 0:09:19.6]} 12... O-O {[%clk
0:08:30.7]} 13. f3 {[%clk 0:09:10]} 13... exf3 {[%clk 0:06:38.9]} 14. Nxf3
{[%clk 0:09:09.4]} 14... Qe8 {[%clk 0:05:43.1]} 15. Qd3 {[%clk 0:08:12.3]} 15...
e5 {[%clk 0:05:11.4]} 16. dxe5 {[%clk 0:08:01.8]} 16... Nc5 {[%clk 0:05:09.6]}
17. Qa3 {[%clk 0:07:31]} 17... Ne4 {[%clk 0:03:37.2]} 18. Bd3 {[%clk 0:07:00.3]}
18... Bg4 {[%clk 0:02:59.8]} 19. Rf1 {[%clk 0:04:43.5]} 19... Rf7 {[%clk
0:02:07.9]} 20. O-O-O {[%clk 0:04:25.1]} 20... Bf8 {[%clk 0:01:52.7]} 21. Qa2
{[%clk 0:04:22.9]} 21... Kh7 {[%clk 0:01:30.3]} 22. Rde1 {[%clk 0:04:17.3]}
22... Bb4 {[%clk 0:01:24.4]} 23. c3 {[%clk 0:04:15.6]} 23... Bf8 {[%clk
0:01:14.2]} 24. Bxe4 {[%clk 0:04:04]} 24... dxe4 {[%clk 0:01:16.1]} 25. Nd2
{[%clk 0:04:05.3]} 25... Be6 {[%clk 0:01:06.1]} 26. Qb1 {[%clk 0:04:04.9]} 26...
Bf5 {[%clk 0:00:58.3]} 27. Nxe4 {[%clk 0:03:54.9]} 27... Qe6 {[%clk 0:00:40.3]}
28. g4 {[%clk 0:03:48.3]} 28... Bxg4 {[%clk 0:00:32.6]} 29. Nf6+ {[%clk
0:03:48.9]} 29... Rxf6 {[%clk 0:00:12.9]} 30. exf6 {[%clk 0:03:50.8]} 30... b5
{[%clk 0:00:13.6]} 31. Rg1 {[%clk 0:03:27.3]} 31... bxa4 {[%clk 0:00:12]} 32.
Qc2 {[%clk 0:03:22.5]} 32... a3 {[%clk 0:00:11.2]} 33. b4 {[%clk 0:03:15.2]}
33... a2 {[%clk 0:00:11.9]} 34. Kb2 {[%clk 0:03:16.3]} 34... a5 {[%clk 0:00:13]}
35. Qb3 {[%clk 0:03:11.2]} 35... Qxb3+ {[%clk 0:00:11.2]} 36. Kxb3 {[%clk
0:03:13.1]} 36... axb4 {[%clk 0:00:12.6]} 37. c4 {[%clk 0:03:02.8]} 37... Be6
{[%clk 0:00:14]} 38. Rc1 {[%clk 0:02:50.6]} 38... Ra3+ {[%clk 0:00:15.1]} 39.
Kb2 {[%clk 0:02:52.1]} 39... c5 {[%clk 0:00:15]} 40. Rg2 {[%clk 0:02:45.1]}
40... Kg8 {[%clk 0:00:13.7]} 41. Rxg6+ {[%clk 0:02:40.7]} 41... Kf7 {[%clk
0:00:14.9]} 42. Rgg1 {[%clk 0:02:38.4]} 42... Kxf6 {[%clk 0:00:15.6]} 43. e4
{[%clk 0:02:39.3]} 43... Ke7 {[%clk 0:00:11.9]} 44. Be5 {[%clk 0:02:34.7]} 44...
Re3 {[%clk 0:00:11.4]} 45. Kxa2 {[%clk 0:02:13.1]} 45... Rxe4 {[%clk 0:00:11.9]}
46. Rge1 {[%clk 0:02:04.7]} 46... Rxh4 {[%clk 0:00:10.9]} 47. Kb3 {[%clk
0:02:00.7]} 47... Rh3+ {[%clk 0:00:08.3]} 48. Ka4 {[%clk 0:01:56.3]} 48... Bd7+
{[%clk 0:00:09.5]} 49. Ka5 {[%clk 0:01:56.5]} 49... Kd8 {[%clk 0:00:10.2]} 50.
Kb6 {[%clk 0:01:53.8]} 50... Rd3 {[%clk 0:00:08.8]} 51. Ra1 {[%clk 0:01:42.9]}
51... Be6 {[%clk 0:00:02.7]} 52. Bf6+ {[%clk 0:01:35.6]} 1-0

[Event "GrandPrix_29.05"]
[Site "Chess.com"]
[Date "2020.05.29"]
[Round "3"]
[White "GM_RobertoMogranzini"]
[Black "chess_big_master"]
[Result "1-0"]
[WhiteElo "1855"]
[BlackElo "2035"]
[TimeControl "600+2"]
[EndTime "10:26:53 PDT"]
[Termination "GM_RobertoMogranzini won by resignation"]

1. c4 {[%clk 0:10:01.9]} 1... e6 {[%clk 0:09:56.3]} 2. g3 {[%clk 0:10:02.9]}
2... d5 {[%clk 0:09:57]} 3. Bg2 {[%clk 0:10:04]} 3... Nf6 {[%clk 0:09:55.9]} 4.
Nf3 {[%clk 0:10:05.2]} 4... c6 {[%clk 0:09:56.3]} 5. b3 {[%clk 0:10:04.6]} 5...
Be7 {[%clk 0:09:41.4]} 6. O-O {[%clk 0:10:05]} 6... O-O {[%clk 0:09:42]} 7. Bb2
{[%clk 0:10:06.4]} 7... Nbd7 {[%clk 0:09:41.8]} 8. d3 {[%clk 0:10:04.5]} 8... a5
{[%clk 0:09:24.7]} 9. a3 {[%clk 0:09:43.5]} 9... Qb6 {[%clk 0:08:36.4]} 10. Nbd2
{[%clk 0:09:30.4]} 10... Nc5 {[%clk 0:08:28.6]} 11. Qc2 {[%clk 0:09:28]} 11...
Nfd7 {[%clk 0:07:29.3]} 12. d4 {[%clk 0:09:10.3]} 12... Na6 {[%clk 0:07:24.4]}
13. c5 {[%clk 0:09:07.4]} 13... Qc7 {[%clk 0:07:17.4]} 14. e4 {[%clk 0:09:01.8]}
14... b6 {[%clk 0:07:15]} 15. cxb6 {[%clk 0:08:48.1]} 15... Qxb6 {[%clk
0:07:14.2]} 16. h4 {[%clk 0:07:53]} 16... h6 {[%clk 0:06:48.2]} 17. Rfc1 {[%clk
0:07:39]} 17... Bb7 {[%clk 0:06:46.7]} 18. exd5 {[%clk 0:07:23.4]} 18... cxd5
{[%clk 0:06:35.4]} 19. Qd3 {[%clk 0:07:21.3]} 19... Rac8 {[%clk 0:06:06.2]} 20.
Bf1 {[%clk 0:07:16.7]} 20... Nc7 {[%clk 0:05:54.7]} 21. Qe3 {[%clk 0:07:10.3]}
21... Ba6 {[%clk 0:05:38.8]} 22. Bh3 {[%clk 0:07:09.5]} 22... Nb5 {[%clk
0:05:15.8]} 23. a4 {[%clk 0:06:47.7]} 23... Na7 {[%clk 0:05:12.2]} 24. g4 {[%clk
0:04:34.6]} 24... Nf6 {[%clk 0:03:55.3]} 25. g5 {[%clk 0:04:30.2]} 25... hxg5
{[%clk 0:03:55.9]} 26. hxg5 {[%clk 0:04:20]} 26... Ne4 {[%clk 0:03:56.5]} 27.
Nxe4 {[%clk 0:04:06.7]} 27... dxe4 {[%clk 0:03:57.2]} 28. Ne5 {[%clk 0:04:02]}
28... Qd8 {[%clk 0:02:38.8]} 29. g6 {[%clk 0:03:59.1]} 29... f5 {[%clk
0:02:24.9]} 30. Bf1 {[%clk 0:02:51.2]} 30... Bxf1 {[%clk 0:02:15.3]} 31. Kxf1
{[%clk 0:02:51.9]} 31... Bh4 {[%clk 0:01:43.5]} 32. Qh3 {[%clk 0:02:28.1]} 32...
Qg5 {[%clk 0:01:28]} 33. Rc4 {[%clk 0:02:20.8]} 33... Rxc4 {[%clk 0:00:55.8]}
34. bxc4 {[%clk 0:02:22.7]} 34... Rc8 {[%clk 0:00:55.1]} 35. Bc1 {[%clk
0:02:22.8]} 35... Qh5 {[%clk 0:00:37.6]} 36. Rb1 {[%clk 0:02:01.6]} 36... Kf8
{[%clk 0:00:20.5]} 37. Bf4 {[%clk 0:01:49.1]} 37... Ke8 {[%clk 0:00:12.8]} 38.
Bg3 {[%clk 0:01:35.9]} 38... e3 {[%clk 0:00:03.7]} 39. Qxh4 {[%clk 0:01:28]}
39... e2+ {[%clk 0:00:04.4]} 40. Ke1 {[%clk 0:01:26]} 40... Qxh4 {[%clk
0:00:02.5]} 41. Bxh4 {[%clk 0:01:26.7]} 41... Nc6 {[%clk 0:00:04.4]} 42. Nxc6
{[%clk 0:01:19.7]} 42... Rxc6 {[%clk 0:00:06.3]} 43. Rc1 {[%clk 0:01:04.4]}
43... e5 {[%clk 0:00:05.5]} 44. d5 {[%clk 0:01:00.6]} 44... Rf6 {[%clk
0:00:06.3]} 45. Bxf6 {[%clk 0:01:00.9]} 1-0

[Event "GrandPrix_29.05"]
[Site "Chess.com"]
[Date "2020.05.29"]
[Round "3"]
[White "BakaPG"]
[Black "Martin_Petrov2000"]
[Result "1/2-1/2"]
[WhiteElo "2140"]
[BlackElo "2235"]
[TimeControl "600+2"]
[EndTime "10:26:58 PDT"]
[Termination "Game drawn by repetition"]

1. e4 {[%clk 0:10:01.9]} 1... c5 {[%clk 0:09:58.2]} 2. Nf3 {[%clk 0:10:01.1]}
2... d6 {[%clk 0:09:59]} 3. d4 {[%clk 0:10:00.8]} 3... cxd4 {[%clk 0:10:00.9]}
4. Nxd4 {[%clk 0:10:01.8]} 4... Nf6 {[%clk 0:10:02]} 5. Nc3 {[%clk 0:10:02.6]}
5... a6 {[%clk 0:10:03]} 6. Be3 {[%clk 0:09:59.5]} 6... e5 {[%clk 0:10:02.9]} 7.
Nb3 {[%clk 0:09:59.6]} 7... Be7 {[%clk 0:10:00.7]} 8. f3 {[%clk 0:09:55.5]} 8...
O-O {[%clk 0:09:53.2]} 9. Qd2 {[%clk 0:09:54]} 9... Be6 {[%clk 0:09:54]} 10.
O-O-O {[%clk 0:09:53.7]} 10... Nbd7 {[%clk 0:09:53.8]} 11. g3 {[%clk 0:09:53.6]}
11... b5 {[%clk 0:08:47.1]} 12. Bd3 {[%clk 0:09:48.2]} 12... Nb6 {[%clk
0:08:18.7]} 13. Kb1 {[%clk 0:09:44.9]} 13... b4 {[%clk 0:07:27.5]} 14. Ne2
{[%clk 0:09:14.5]} 14... a5 {[%clk 0:06:57.9]} 15. Nbc1 {[%clk 0:09:09.4]} 15...
d5 {[%clk 0:06:47.5]} 16. h3 {[%clk 0:08:53.3]} 16... dxe4 {[%clk 0:06:19.5]}
17. Bxb6 {[%clk 0:08:41.4]} 17... Qxb6 {[%clk 0:06:16.4]} 18. Bxe4 {[%clk
0:08:40.1]} 18... Rac8 {[%clk 0:05:49.1]} 19. g4 {[%clk 0:08:27.8]} 19... Rfd8
{[%clk 0:05:11.7]} 20. Nd3 {[%clk 0:08:23.2]} 20... a4 {[%clk 0:05:01.5]} 21.
Rc1 {[%clk 0:07:43.4]} 21... Qb5 {[%clk 0:04:22.5]} 22. Qe3 {[%clk 0:06:53]}
22... b3 {[%clk 0:04:01.6]} 23. Nc3 {[%clk 0:06:22.1]} 23... Rxc3 {[%clk
0:03:39.3]} 24. bxc3 {[%clk 0:06:21.1]} 24... bxa2+ {[%clk 0:03:02.1]} 25. Ka1
{[%clk 0:06:19.7]} 25... Ba3 {[%clk 0:02:54.6]} 26. Nb4 {[%clk 0:06:12.1]} 26...
Rb8 {[%clk 0:02:07.3]} 27. Qd2 {[%clk 0:05:53.4]} 27... Nxe4 {[%clk 0:01:53.6]}
28. fxe4 {[%clk 0:05:51.8]} 28... Bxc1 {[%clk 0:01:47.3]} 29. Rxc1 {[%clk
0:05:49.8]} 29... h6 {[%clk 0:01:44.3]} 30. Rg1 {[%clk 0:05:21.6]} 30... Qc5
{[%clk 0:01:42.2]} 31. Rg3 {[%clk 0:05:08.6]} 31... Qc4 {[%clk 0:01:24.9]} 32.
Qd3 {[%clk 0:04:57.9]} 32... Qc5 {[%clk 0:01:12.1]} 33. Qd2 {[%clk 0:04:35.4]}
33... Qb6 {[%clk 0:01:11.4]} 34. Rd3 {[%clk 0:04:10.4]} 34... Qg1+ {[%clk
0:01:08.9]} 35. Qd1 {[%clk 0:04:09.7]} 35... Qg2 {[%clk 0:01:08.7]} 36. Re3
{[%clk 0:03:43.5]} 36... Kh7 {[%clk 0:01:06.2]} 37. Qe2 {[%clk 0:03:28.7]} 37...
Rd8 {[%clk 0:00:52.4]} 38. Nd5 {[%clk 0:03:19.2]} 38... Qg1+ {[%clk 0:00:27.3]}
39. Kxa2 {[%clk 0:03:07.6]} 39... Bxd5+ {[%clk 0:00:16.5]} 40. exd5 {[%clk
0:03:07.7]} 40... Rxd5 {[%clk 0:00:18.4]} 41. Rd3 {[%clk 0:03:02.8]} 41... Rxd3
{[%clk 0:00:17.4]} 42. Qxd3+ {[%clk 0:02:49.3]} 42... g6 {[%clk 0:00:17]} 43.
Qc4 {[%clk 0:02:44.6]} 43... Kg7 {[%clk 0:00:16.5]} 44. Qxa4 {[%clk 0:02:44.8]}
44... Qe3 {[%clk 0:00:16.8]} 45. Qc4 {[%clk 0:02:42.9]} 45... Qxh3 {[%clk
0:00:14.6]} 46. Kb2 {[%clk 0:02:38.7]} 46... Qf3 {[%clk 0:00:14.4]} 47. Qc5
{[%clk 0:02:34.1]} 47... Qf6 {[%clk 0:00:09.9]} 48. c4 {[%clk 0:02:32.9]} 48...
e4+ {[%clk 0:00:10.9]} 49. Kc1 {[%clk 0:02:33.3]} 49... Qc3 {[%clk 0:00:10.8]}
50. Kd1 {[%clk 0:02:15.9]} 50... e3 {[%clk 0:00:11.4]} 51. Qd5 {[%clk
0:02:16.7]} 51... h5 {[%clk 0:00:07.6]} 52. gxh5 {[%clk 0:02:16.4]} 52... gxh5
{[%clk 0:00:04.1]} 53. Qg5+ {[%clk 0:02:15.9]} 53... Kf8 {[%clk 0:00:05.6]} 54.
Qd8+ {[%clk 0:02:16.2]} 54... Kg7 {[%clk 0:00:07.1]} 55. Qg5+ {[%clk 0:02:16.4]}
55... Kh7 {[%clk 0:00:05.7]} 56. Qxh5+ {[%clk 0:02:17]} 56... Kg8 {[%clk
0:00:06.9]} 57. Qg5+ {[%clk 0:02:17.5]} 57... Kf8 {[%clk 0:00:07.5]} 58. Qd8+
{[%clk 0:02:17]} 58... Kg7 {[%clk 0:00:08.5]} 59. Qg5+ {[%clk 0:02:14.7]} 59...
Kh7 {[%clk 0:00:09.4]} 60. Qh5+ {[%clk 0:02:14.3]} 60... Kg8 {[%clk 0:00:09.9]}
61. Qg5+ {[%clk 0:02:14.5]} 61... Kf8 {[%clk 0:00:11]} 62. Qd8+ {[%clk
0:02:14.2]} 62... Kg7 {[%clk 0:00:12.1]} 63. Qg5+ {[%clk 0:02:12.1]} 63... Kh7
{[%clk 0:00:12.4]} 64. Qh5+ {[%clk 0:02:12.3]} 1/2-1/2

[Event "GrandPrix_29.05"]
[Site "Chess.com"]
[Date "2020.05.29"]
[Round "3"]
[White "rfhfb"]
[Black "Batica1984"]
[Result "0-1"]
[WhiteElo "2163"]
[BlackElo "2213"]
[TimeControl "600+2"]
[EndTime "10:27:02 PDT"]
[Termination "Batica1984 won by resignation"]

1. d4 {[%clk 0:09:57]} 1... Nf6 {[%clk 0:10:00.4]} 2. c4 {[%clk 0:09:57.8]} 2...
c5 {[%clk 0:09:58.5]} 3. d5 {[%clk 0:09:57]} 3... b5 {[%clk 0:09:59.3]} 4. cxb5
{[%clk 0:09:58.2]} 4... a6 {[%clk 0:10:00.4]} 5. bxa6 {[%clk 0:09:59.4]} 5... g6
{[%clk 0:10:00.8]} 6. Nc3 {[%clk 0:10:00.1]} 6... Bxa6 {[%clk 0:10:01.7]} 7. e4
{[%clk 0:10:00.9]} 7... d6 {[%clk 0:09:59.3]} 8. Bxa6 {[%clk 0:09:55.8]} 8...
Nxa6 {[%clk 0:09:59.6]} 9. Nge2 {[%clk 0:09:51.8]} 9... Bg7 {[%clk 0:09:58.5]}
10. O-O {[%clk 0:09:52.7]} 10... O-O {[%clk 0:10:00]} 11. f3 {[%clk 0:09:26.5]}
11... Qb6 {[%clk 0:09:55]} 12. Kh1 {[%clk 0:09:11.8]} 12... Nd7 {[%clk
0:09:51.2]} 13. Rb1 {[%clk 0:08:48.1]} 13... Nc7 {[%clk 0:07:27.2]} 14. Bg5
{[%clk 0:07:21.6]} 14... Rfb8 {[%clk 0:06:46]} 15. b3 {[%clk 0:06:01.1]} 15...
Qa6 {[%clk 0:06:41.5]} 16. Qc2 {[%clk 0:05:37.2]} 16... Ne5 {[%clk 0:06:39.4]}
17. h3 {[%clk 0:04:04.1]} 17... h6 {[%clk 0:06:22.1]} 18. Bxe7 {[%clk 0:03:33]}
18... Nd3 {[%clk 0:05:13]} 19. Qd2 {[%clk 0:02:36.5]} 19... Nb4 {[%clk
0:04:59.8]} 20. a4 {[%clk 0:02:17.1]} 20... f6 {[%clk 0:04:56.5]} 21. Qf4 {[%clk
0:02:12.1]} 21... Ne8 {[%clk 0:04:51.3]} 22. Qg4 {[%clk 0:01:39.2]} 22... Rb7
{[%clk 0:04:03.6]} 23. Qe6+ {[%clk 0:01:34.6]} 23... Kh7 {[%clk 0:04:04.7]} 24.
Nb5 {[%clk 0:01:07.3]} 24... Nd3 {[%clk 0:02:40]} 25. Rbd1 {[%clk 0:00:55.6]}
25... c4 {[%clk 0:02:40.8]} 26. Rxd3 {[%clk 0:00:20.6]} 26... cxd3 {[%clk
0:02:40.3]} 27. Nf4 {[%clk 0:00:22.2]} 27... d2 {[%clk 0:01:50.9]} 28. Rd1
{[%clk 0:00:17.4]} 28... Rxb5 {[%clk 0:01:46.8]} 29. Qf7 {[%clk 0:00:07]} 29...
Rb7 {[%clk 0:01:46.6]} 30. Nxg6 {[%clk 0:00:06.3]} 30... Nc7 {[%clk 0:01:26]}
31. Bxf6 {[%clk 0:00:07.1]} 31... Nxd5 {[%clk 0:01:21.7]} 32. Qxd5 {[%clk
0:00:08.2]} 32... Bxf6 {[%clk 0:01:16]} 33. Nf4 {[%clk 0:00:09.4]} 33... Be5
{[%clk 0:01:11]} 34. Qxd2 {[%clk 0:00:05.1]} 34... Rg8 {[%clk 0:01:05.8]} 35.
Nd5 {[%clk 0:00:05.3]} 35... Rbg7 {[%clk 0:01:01.5]} 36. Rg1 {[%clk 0:00:05.3]}
36... Qa7 {[%clk 0:00:55.7]} 37. f4 {[%clk 0:00:06.8]} 37... Bd4 {[%clk
0:00:56]} 38. Rf1 {[%clk 0:00:08]} 38... Rxg2 {[%clk 0:00:56.7]} 39. Qxg2 {[%clk
0:00:09.9]} 39... Rxg2 {[%clk 0:00:57.4]} 40. Kxg2 {[%clk 0:00:11.8]} 40... Qc5
{[%clk 0:00:57.9]} 41. Rf3 {[%clk 0:00:11.9]} 41... Qc2+ {[%clk 0:00:58.7]} 42.
Kg3 {[%clk 0:00:13]} 42... Qxe4 {[%clk 0:00:57.9]} 43. Nc7 {[%clk 0:00:13]}
43... Qe1+ {[%clk 0:00:57.5]} 44. Kg4 {[%clk 0:00:09.7]} 44... Qe2 {[%clk
0:00:58.6]} 45. Nd5 {[%clk 0:00:08.8]} 45... h5+ {[%clk 0:00:58.6]} 46. Kg3
{[%clk 0:00:09.5]} 46... Qe1+ {[%clk 0:00:59.8]} 0-1